Workbook

Sheet INVERSIÓN
C2: VAN | D2: ='VALORACIÓN Y RENTABILIDAD'!F2 -> 548675.2953
C3: TIR | D3: ='VALORACIÓN Y RENTABILIDAD'!F3 -> 0.1790491704
C4: TIR Capital | D4: ='VALORACIÓN Y RENTABILIDAD'!F4 -> 0.2736827112
F5: Cuadro de Amortización Técnica
B6: Concepto | C6: Cuantía | D6: Coef. | E6: 1 | F6: =E6+1 -> 2 | G6: =F6+1 -> 3 | H6: 4 | I6: 5
B7: Inmovilizado Material
B8: Terrenos | C8: 240000 | D8: 0 | E8: =D8*C8 -> 0 | F8: =IF($E8<($C8-SUM($E8:E8)),$E8,($C8-SUM($E8:E8))) -> 0 | G8: =IF($E8<($C8-SUM($E8:F8)),$E8,($C8-SUM($E8:F8))) -> 0 | H8: =IF($E8<($C8-SUM($E8:G8)),$E8,($C8-SUM($E8:G8))) -> 0 | I8: =IF($E8<($C8-SUM($E8:H8)),$E8,($C8-SUM($E8:H8))) -> 0
B9: Edificios | C9: ='ANÁLISIS DE RIESGO'!D12 -> 430000 | D9: 0.03 | E9: =D9*C9 -> 12900 | F9: =IF($E9<($C9-SUM($E9:E9)),$E9,($C9-SUM($E9:E9))) -> 12900 | G9: =IF($E9<($C9-SUM($E9:F9)),$E9,($C9-SUM($E9:F9))) -> 12900 | H9: =IF($E9<($C9-SUM($E9:G9)),$E9,($C9-SUM($E9:G9))) -> 12900 | I9: =IF($E9<($C9-SUM($E9:H9)),$E9,($C9-SUM($E9:H9))) -> 12900
B10: Maquinaria | C10: 73000 | D10: 0.12 | E10: 8760 | F10: =IF($E10<($C10-SUM($E10:E10)),$E10,($C10-SUM($E10:E10))) -> 8760 | G10: =IF($E10<($C10-SUM($E10:F10)),$E10,($C10-SUM($E10:F10))) -> 8760 | H10: =IF($E10<($C10-SUM($E10:G10)),$E10,($C10-SUM($E10:G10))) -> 8760 | I10: =IF($E10<($C10-SUM($E10:H10)),$E10,($C10-SUM($E10:H10))) -> 8760
B11: Equipamiento | C11: 61350 | D11: 0.15 | E11: 9202.5 | F11: =IF($E11<($C11-SUM($E11:E11)),$E11,($C11-SUM($E11:E11))) -> 9202.5 | G11: =IF($E11<($C11-SUM($E11:F11)),$E11,($C11-SUM($E11:F11))) -> 9202.5 | H11: =IF($E11<($C11-SUM($E11:G11)),$E11,($C11-SUM($E11:G11))) -> 9202.5 | I11: =IF($E11<($C11-SUM($E11:H11)),$E11,($C11-SUM($E11:H11))) -> 9202.5
B12: Mobiliario | C12: 140000 | D12: 0.12 | E12: 16800 | F12: =IF($E12<($C12-SUM($E12:E12)),$E12,($C12-SUM($E12:E12))) -> 16800 | G12: =IF($E12<($C12-SUM($E12:F12)),$E12,($C12-SUM($E12:F12))) -> 16800 | H12: =IF($E12<($C12-SUM($E12:G12)),$E12,($C12-SUM($E12:G12))) -> 16800 | I12: =IF($E12<($C12-SUM($E12:H12)),$E12,($C12-SUM($E12:H12))) -> 16800
B13: Equipos Informáticos | C13: 40000 | D13: 0.23 | E13: 9200 | F13: =IF($E13<($C13-SUM($E13:E13)),$E13,($C13-SUM($E13:E13))) -> 9200 | G13: =IF($E13<($C13-SUM($E13:F13)),$E13,($C13-SUM($E13:F13))) -> 9200 | H13: =IF($E13<($C13-SUM($E13:G13)),$E13,($C13-SUM($E13:G13))) -> 9200 | I13: =IF($E13<($C13-SUM($E13:H13)),$E13,($C13-SUM($E13:H13))) -> 3200
B14: Varios | C14: 34000 | D14: 0.15 | E14: 5100 | F14: =IF($E14<($C14-SUM($E14:E14)),$E14,($C14-SUM($E14:E14))) -> 5100 | G14: =IF($E14<($C14-SUM($E14:F14)),$E14,($C14-SUM($E14:F14))) -> 5100 | H14: =IF($E14<($C14-SUM($E14:G14)),$E14,($C14-SUM($E14:G14))) -> 5100 | I14: =IF($E14<($C14-SUM($E14:H14)),$E14,($C14-SUM($E14:H14))) -> 5100
B15: Otros | C15: 0 | D15: 0 | E15: 0 | F15: =IF($E15<($C15-SUM($E15:E15)),$E15,($C15-SUM($E15:E15))) -> 0 | G15: =IF($E15<($C15-SUM($E15:F15)),$E15,($C15-SUM($E15:F15))) -> 0 | H15: =IF($E15<($C15-SUM($E15:G15)),$E15,($C15-SUM($E15:G15))) -> 0 | I15: =IF($E15<($C15-SUM($E15:H15)),$E15,($C15-SUM($E15:H15))) -> 0
B16: Otros | C16: 0 | D16: 0 | E16: 0 | F16: =IF($E16<($C16-SUM($E16:E16)),$E16,($C16-SUM($E16:E16))) -> 0 | G16: =IF($E16<($C16-SUM($E16:F16)),$E16,($C16-SUM($E16:F16))) -> 0 | H16: =IF($E16<($C16-SUM($E16:G16)),$E16,($C16-SUM($E16:G16))) -> 0 | I16: =IF($E16<($C16-SUM($E16:H16)),$E16,($C16-SUM($E16:H16))) -> 0
B17: Total Inmovilizado Material | C17: =SUM(C8:C16) -> 1018350 | E17: =SUM(E8:E16) -> 61962.5 | F17: =SUM(F8:F16) -> 61962.5 | G17: =SUM(G8:G16) -> 61962.5 | H17: 61962.5 | I17: =SUM(I8:I16) -> 55962.5
B18: Inmovilizado Intangible
B19: Propiedad Intelectual | C19: 23000 | D19: 0.2 | E19: =D19*C19 -> 4600 | F19: =IF($E19<($C19-SUM($E19:E19)),$E19,($C19-SUM($E19:E19))) -> 4600 | G19: =IF($E19<($C19-SUM($E19:F19)),$E19,($C19-SUM($E19:F19))) -> 4600 | H19: =IF($E19<($C19-SUM($E19:G19)),$E19,($C19-SUM($E19:G19))) -> 4600 | I19: =IF($E19<($C19-SUM($E19:H19)),$E19,($C19-SUM($E19:H19))) -> 4600
B20: Aplicaciones Informáticas | C20: 3500 | D20: 0.2 | E20: =D20*C20 -> 700 | F20: =IF($E20<($C20-SUM($E20:E20)),$E20,($C20-SUM($E20:E20))) -> 700 | G20: =IF($E20<($C20-SUM($E20:F20)),$E20,($C20-SUM($E20:F20))) -> 700 | H20: =IF($E20<($C20-SUM($E20:G20)),$E20,($C20-SUM($E20:G20))) -> 700 | I20: =IF($E20<($C20-SUM($E20:H20)),$E20,($C20-SUM($E20:H20))) -> 700
B21: Otros | C21: 2450 | D21: 0.2 | E21: =D21*C21 -> 490 | F21: =IF($E21<($C21-SUM($E21:E21)),$E21,($C21-SUM($E21:E21))) -> 490 | G21: =IF($E21<($C21-SUM($E21:F21)),$E21,($C21-SUM($E21:F21))) -> 490 | H21: =IF($E21<($C21-SUM($E21:G21)),$E21,($C21-SUM($E21:G21))) -> 490 | I21: =IF($E21<($C21-SUM($E21:H21)),$E21,($C21-SUM($E21:H21))) -> 490
B22: Total Inmovilizado Intangible | C22: =SUM(C19:C21) -> 28950 | E22: =SUM(E19:E21) -> 5790 | F22: =SUM(F19:F21) -> 5790 | G22: =SUM(G19:G21) -> 5790 | H22: 5790 | I22: 5790
B24: Total Inmovilizado | C24: =C17+C22 -> 1047300 | E24: =E17+E22 -> 67752.5 | F24: 67752.5 | G24: =G17+G22 -> 67752.5 | H24: 67752.5 | I24: 61752.5
B27: Total Inversión Inicial
B28: Inmovilizado | C28: =C24 -> 1047300
B29: Fondo de Maniobra Inicial | C29: ='ESTADOS FINANCIEROS'!C34-'ESTADOS FINANCIEROS'!C43 -> 61166.66667
B30: Total | C30: =SUM(C28:C29) -> 1108466.667

Sheet FINANCIACIÓN
B2: Total a Financiar | C2: =INVERSIÓN!C30 -> 1108466.667 | G2: =INVERSIÓN!C2 -> VAN | H2: =INVERSIÓN!D2 -> 548675.2953
G3: =INVERSIÓN!C3 -> TIR | H3: =INVERSIÓN!D3 -> 0.1790491704
B4: Composición de la financiación inicial | G4: =INVERSIÓN!C4 -> TIR Capital | H4: =INVERSIÓN!D4 -> 0.2736827112
C5: Porcentaje | D5: Coste | E5: Cuantía
B6: Capital | C6: 0.4 | D6: 0.15 | E6: =C6*$C$2 -> 443386.6667
B7: Subvención | C7: 0.05 | E7: =C7*$C$2 -> 55423.33333
B8: Deuda | C8: =1-C7-C6 -> 0.55 | D8: =C13*(1-'ESTADOS FINANCIEROS'!E3) -> 0.042 | E8: =C8*$C$2 -> 609656.6667
C9: CCMP = | D9: =D6*C6+D8*C8 -> 0.0831
B11: Datos del préstamo
B12: Cuantía | C12: =E8 -> 609656.6667
B13: Tasa | C13: 0.06
B14: Duración | C14: 10
B16: Cuadro de amortización del préstamo
B17: Periodo | C17: 1 | D17: =C17+1 -> 2 | E17: =D17+1 -> 3 | F17: 4 | G17: 5 | H17: 6
B18: Cap. Pend. Inicial | C18: =C12 -> 609656.6667 | D18: =C18-C19 -> 563403.2602 | E18: =D18-D19 -> 514374.6492 | F18: 462404.3217 | G18: 407315.7745 | H18: =G18-G19 -> 348921.9144
B19: Amortización | C19: =IF(C17<=$C$14,-PPMT($C$13,C17,$C$14,$C$12),0) -> 46253.40652 | D19: =IF(D17<=$C$14,-PPMT($C$13,D17,$C$14,$C$12),0) -> 49028.61091 | E19: 51970.32756 | F19: 55088.54721 | G19: 58393.86005 | H19: =IF(H17<=$C$14,-PPMT($C$13,H17,$C$14,$C$12),0) -> 61897.49165
B20: Intereses | C20: =$C$13*C18 -> 36579.4 | D20: =$C$13*D18 -> 33804.19561 | E20: 30862.47895 | F20: 27744.2593 | G20: 24438.94647 | H20: =$C$13*H18 -> 20935.31487
B21: Cuota | C21: =C19+C20 -> 82832.80652 | D21: =D19+D20 -> 82832.80652 | E21: 82832.80652 | F21: 82832.80652 | G21: 82832.80652 | H21: 82832.80652
B22: Cap. Pend. Final | C22: =C18-C19 -> 563403.2602 | D22: =D18-D19 -> 514374.6492 | E22: 462404.3217 | F22: 407315.7745 | G22: 348921.9144 | H22: =H18-H19 -> 287024.4228

Sheet INGRESOS Y COSTES
B2: =FINANCIACIÓN!G2 -> VAN | C2: =FINANCIACIÓN!H2 -> 548675.2953
B3: =FINANCIACIÓN!G3 -> TIR | C3: =FINANCIACIÓN!H3 -> 0.1790491704
B4: =FINANCIACIÓN!G4 -> TIR Capital | C4: =FINANCIACIÓN!H4 -> 0.2736827112 | D4: =INVERSIÓN!E6 -> 1 | E4: =D4+1 -> 2 | F4: =E4+1 -> 3 | G4: 4 | H4: 5 | I4: 6
B5: IPC | C5: 0.03 | D5: =C5 -> 0.03 | E5: =D5 -> 0.03 | F5: 0.03 | G5: 0.03 | H5: 0.03
B6: Índice | D6: 1 | E6: =D6*(1+D5) -> 1.03 | F6: =E6*(1+E5) -> 1.0609 | G6: 1.092727 | H6: 1.12550881 | I6: 1.159274074
B8: Ingresos | D8: =D4 -> 1 | E8: 2 | F8: 3 | G8: 4 | H8: 5 | I8: 6
B9: Producto A
B10: Precio | C10: ='ANÁLISIS DE RIESGO'!D9 -> 50 | D10: =$C$10*D6 -> 50 | E10: 51.5 | F10: 53.045 | G10: 54.63635 | H10: 56.2754405 | I10: 57.96370372
B11: Unidades | C11: 5000 | D11: =C11 -> 5000 | E11: =D11*(1+E12) -> 6250 | F11: =E11*(1+F12) -> 7500 | G11: 8625 | H11: =G11*(1+H12) -> 9056.25 | I11: 9327.9375
B12: Crecimiento | E12: 0.25 | F12: 0.2 | G12: 0.15 | H12: 0.05 | I12: ='VALORACIÓN Y RENTABILIDAD'!C2 -> 0.03
B13: Ingresos | D13: =D11*D10 -> 250000 | E13: =E11*E10 -> 321875 | F13: 397837.5 | G13: =G11*G10 -> 471238.5187 | H13: 509644.458 | I13: =I11*I10 -> 540681.8055
B15: Producto B
B16: Precio | C16: 60 | D16: =$C$16*D6 -> 60 | E16: 61.8 | F16: 63.654 | G16: 65.56362 | H16: 67.5305286 | I16: 69.55644446
B17: Unidades | C17: ='ANÁLISIS DE RIESGO'!D10 -> 4000 | D17: =C17 -> 4000 | E17: =D17*(1+E18) -> 5200 | F17: =E17*(1+F18) -> 6240 | G17: =F17*(1+G18) -> 7176 | H17: =G17*(1+H18) -> 7534.8 | I17: 7760.844
B18: Crecimiento | E18: 0.3 | F18: 0.2 | G18: 0.15 | H18: 0.05 | I18: ='VALORACIÓN Y RENTABILIDAD'!C2 -> 0.03
B19: Ingresos | D19: =D17*D16 -> 240000 | E19: =E17*E16 -> 321360 | F19: 397200.96 | G19: =G17*G16 -> 470484.5371 | H19: 508829.0269 | I19: =I17*I16 -> 539816.7146
B21: Total Ingresos | D21: =D13+D19 -> 490000 | E21: 643235 | F21: 795038.46 | G21: 941723.0559 | H21: 1018473.485 | I21: 1080498.52
B23: Costes Fijos | D23: =D8 -> 1 | E23: 2 | F23: 3 | G23: 4 | H23: 5 | I23: 6
B24: Personal | C24: ='ANÁLISIS DE RIESGO'!D11 -> 160000 | D24: =$C24*D$6 -> 160000 | E24: 164800 | F24: 169744 | G24: 174836.32 | H24: =$C24*H$6 -> 180081.4096 | I24: 185483.8519
B25: Gastos Generales | C25: 35000 | D25: 35000 | E25: 36050 | F25: 37131.5 | G25: 38245.445 | H25: 39392.80835 | I25: 40574.5926
B26: Gastos Varios | C26: 15000 | D26: 15000 | E26: 15450 | F26: 15913.5 | G26: 16390.905 | H26: 16882.63215 | I26: 17389.11111
B27: Gastos de Constitución | C27: 2000 | D27: =C27 -> 2000
B28: Total Costes Fijos | D28: =SUM(D24:D27) -> 212000 | E28: =SUM(E24:E27) -> 216300 | F28: 222789 | G28: 229472.67 | H28: =SUM(H24:H27) -> 236356.8501 | I28: 243447.5556
B30: Costes Variables | D30: =D4 -> 1 | E30: 2 | F30: 3 | G30: 4 | H30: 5 | I30: 6
B31: =B9 -> Producto A
B32: Materias Primas | C32: 0.4 | D32: =$C32*D$13 -> 100000 | E32: 128750 | F32: 159135 | G32: 188495.4075 | H32: 203857.7832 | I32: 216272.7222
B33: Otros | C33: 0.1 | D33: 25000 | E33: 32187.5 | F33: 39783.75 | G33: 47123.85188 | H33: 50964.4458 | I33: 54068.18055
B34: ="Variables "&B31 -> Variables Producto A | D34: =SUM(D32:D33) -> 125000 | E34: 160937.5 | F34: 198918.75 | G34: 235619.2594 | H34: =SUM(H32:H33) -> 254822.229 | I34: 270340.9028
B36: =B15 -> Producto B
B37: Materias Primas | C37: ='ANÁLISIS DE RIESGO'!D13 -> 0.45 | D37: =$C37*D$19 -> 108000 | E37: 144612 | F37: 178740.432 | G37: 211718.0417 | H37: 228973.0621 | I37: 242917.5216
B38: Otros | C38: 0.08 | D38: 19200 | E38: 25708.8 | F38: 31776.0768 | G38: 37638.76297 | H38: 40706.32215 | I38: 43185.33717
B39: ="Variables "&B36 -> Variables Producto B | D39: =SUM(D37:D38) -> 127200 | E39: 170320.8 | F39: 210516.5088 | G39: 249356.8047 | H39: =SUM(H37:H38) -> 269679.3843 | I39: 286102.8588
B41: Total Materias Primas | D41: =D32+D37 -> 208000 | E41: 273362 | F41: 337875.432 | G41: 400213.4492 | H41: 432830.8453 | I41: 459190.2438
B43: Total Costes Variables | D43: =D34+D39 -> 252200 | E43: 331258.3 | F43: 409435.2588 | G43: 484976.064 | H43: 524501.6133 | I43: 556443.7615
B45: Costes Totales | D45: =D28+D43 -> 464200 | E45: 547558.3 | F45: 632224.2588 | G45: 714448.734 | H45: 760858.4634 | I45: 799891.3171

Sheet ESTADOS FINANCIEROS
B2: Datos para Fondo de Maniobra | D2: Varios
B3: Meses de Existencias | C3: 2 | D3: Tasa impositiva | E3: 0.3 | G3: ='INGRESOS Y COSTES'!B2 -> VAN | H3: ='INGRESOS Y COSTES'!C2 -> 548675.2953
B4: Meses de Cuentas a Cobrar | C4: 2 | D4: Interés Activo | E4: 0.05 | G4: ='INGRESOS Y COSTES'!B3 -> TIR | H4: ='INGRESOS Y COSTES'!C3 -> 0.1790491704
B5: Meses de Tesorería Operativa | C5: 1.5 | D5: Dividendos | E5: 0.4 | G5: ='INGRESOS Y COSTES'!B4 -> TIR Capital | H5: ='INGRESOS Y COSTES'!C4 -> 0.2736827112
B6: Meses de Cuentas a Pagar | C6: 1
D7: ='INGRESOS Y COSTES'!D8 -> 1 | E7: ='INGRESOS Y COSTES'!E8 -> 2 | F7: ='INGRESOS Y COSTES'!F8 -> 3 | G7: ='INGRESOS Y COSTES'!G8 -> 4 | H7: ='INGRESOS Y COSTES'!H8 -> 5
B8: Cuenta de Resultados | D8: =D7 -> 1 | E8: =E7 -> 2 | F8: 3 | G8: 4 | H8: 5
B9: Ingresos de Explotación | D9: ='INGRESOS Y COSTES'!D21 -> 490000 | E9: ='INGRESOS Y COSTES'!E21 -> 643235 | F9: ='INGRESOS Y COSTES'!F21 -> 795038.46 | G9: ='INGRESOS Y COSTES'!G21 -> 941723.0559 | H9: ='INGRESOS Y COSTES'!H21 -> 1018473.485
B10: Costes Variables | D10: ='INGRESOS Y COSTES'!D43 -> 252200 | E10: ='INGRESOS Y COSTES'!E43 -> 331258.3 | F10: ='INGRESOS Y COSTES'!F43 -> 409435.2588 | G10: ='INGRESOS Y COSTES'!G43 -> 484976.064 | H10: ='INGRESOS Y COSTES'!H43 -> 524501.6133
B11: Margen Bruto | D11: =D9-D10 -> 237800 | E11: =E9-E10 -> 311976.7 | F11: 385603.2012 | G11: =G9-G10 -> 456746.9918 | H11: 493971.8717
B12: Costes Fijos | D12: ='INGRESOS Y COSTES'!D28 -> 212000 | E12: ='INGRESOS Y COSTES'!E28 -> 216300 | F12: ='INGRESOS Y COSTES'!F28 -> 222789 | G12: ='INGRESOS Y COSTES'!G28 -> 229472.67 | H12: ='INGRESOS Y COSTES'!H28 -> 236356.8501
B13: Amortización | D13: =INVERSIÓN!E24 -> 67752.5 | E13: =INVERSIÓN!F24 -> 67752.5 | F13: =INVERSIÓN!G24 -> 67752.5 | G13: =INVERSIÓN!H24 -> 67752.5 | H13: =INVERSIÓN!I24 -> 61752.5
B14: BAIT | D14: =D11-D12-D13 -> -41952.5 | E14: =E11-E12-E13 -> 27924.2 | F14: 95061.7012 | G14: =G11-G12-G13 -> 159521.8218 | H14: 195862.5216
B15: Imputación de la Subvención | D15: =C40/5 -> 11084.66667 | E15: =D15 -> 11084.66667 | F15: 11084.66667 | G15: =F15 -> 11084.66667 | H15: =G15 -> 11084.66667
B16: Gastos Financieros | D16: =FINANCIACIÓN!C20 -> 36579.4 | E16: =FINANCIACIÓN!D20 -> 33804.19561 | F16: =FINANCIACIÓN!E20 -> 30862.47895 | G16: =FINANCIACIÓN!F20 -> 27744.2593 | H16: =FINANCIACIÓN!G20 -> 24438.94647
B17: Ingresos Financieros | D17: =$E$4*C35 -> 4.001776688e-12 | E17: =$E$4*D35 -> -1.164153218e-11 | F17: 0 | G17: 2421.465894 | H17: 6946.957824
B18: BAT | D18: =D14+D15-D16+D17 -> -67447.23333 | E18: =E14+E15-E16+E17 -> 5204.671058 | F18: 75283.88891 | G18: 145283.6951 | H18: 189455.1996
B19: Base Imponible | D19: =D18 -> -67447.23333 | E19: =IF(D19<0,E18+D19,E18) -> -62242.56228 | F19: 13041.32664 | G19: =IF(F19<0,G18+F19,G18) -> 145283.6951 | H19: =IF(G19<0,H18+G19,H18) -> 189455.1996
B20: Impuestos | D20: =MAX(0,$E$3*D19) -> 0 | E20: =MAX(0,$E$3*E19) -> 0 | F20: =MAX(0,$E$3*F19) -> 3912.397991 | G20: =MAX(0,$E$3*G19) -> 43585.10852 | H20: =MAX(0,$E$3*H19) -> 56836.55987
B21: BDT | D21: =D18-D20 -> -67447.23333 | E21: =E18-E20 -> 5204.671058 | F21: 71371.49092 | G21: =G18-G20 -> 101698.5866 | H21: 132618.6397
B22: Dividendos | E22: =MAX(0,$E$5*D21) -> 0 | F22: =MAX(0,$E$5*E21) -> 2081.868423 | G22: =MAX(0,$E$5*F21) -> 28548.59637 | H22: =MAX(0,$E$5*G21) -> 40679.43462
B23: Beneficio retenido | D23: =D21-D22 -> -67447.23333 | E23: =E21-E22 -> 5204.671058 | F23: 69289.6225 | G23: 73149.99019 | H23: 91939.20508
B25: Balance | C25: Inicio | D25: =D7 -> 1 | E25: =E7 -> 2 | F25: =F7 -> 3 | G25: =G7 -> 4 | H25: =H7 -> 5
B26: Inmovilizado Material | C26: =INVERSIÓN!C17 -> 1018350 | D26: =C26 -> 1018350 | E26: =D26 -> 1018350 | F26: =E26 -> 1018350 | G26: =F26 -> 1018350 | H26: =G26 -> 1018350
B27: (Amortización Acumulada) | D27: =C27+INVERSIÓN!E17 -> 61962.5 | E27: =D27+INVERSIÓN!F17 -> 123925 | F27: =E27+INVERSIÓN!G17 -> 185887.5 | G27: =F27+INVERSIÓN!H17 -> 247850 | H27: =G27+INVERSIÓN!I17 -> 303812.5
B28: Inmovilizado Intangible | C28: =INVERSIÓN!C22 -> 28950 | D28: =C28 -> 28950 | E28: =D28 -> 28950 | F28: =E28 -> 28950 | G28: =F28 -> 28950 | H28: =G28 -> 28950
B29: (Amortización Acumulada) | D29: =C29+INVERSIÓN!E22 -> 5790 | E29: =D29+INVERSIÓN!F22 -> 11580 | F29: =E29+INVERSIÓN!G22 -> 17370 | G29: =F29+INVERSIÓN!H22 -> 23160 | H29: =G29+INVERSIÓN!I22 -> 28950
B30: Inmovilizado Neto | C30: =C26+C28-C27-C29 -> 1047300 | D30: =D26+D28-D27-D29 -> 979547.5 | E30: 911795 | F30: =F26+F28-F27-F29 -> 844042.5 | G30: 776290 | H30: 714537.5
B31: Existencias | C31: =$C$3/12*'INGRESOS Y COSTES'!D41 -> 34666.66667 | D31: =$C$3/12*'INGRESOS Y COSTES'!E41 -> 45560.33333 | E31: =$C$3/12*'INGRESOS Y COSTES'!F41 -> 56312.572 | F31: =$C$3/12*'INGRESOS Y COSTES'!G41 -> 66702.24153 | G31: =$C$3/12*'INGRESOS Y COSTES'!H41 -> 72138.47422 | H31: =$C$3/12*'INGRESOS Y COSTES'!I41 -> 76531.7073
B32: Cuentas a Cobrar | D32: =$C$4/12*'INGRESOS Y COSTES'!D21 -> 81666.66667 | E32: =$C$4/12*'INGRESOS Y COSTES'!E21 -> 107205.8333 | F32: =$C$4/12*'INGRESOS Y COSTES'!F21 -> 132506.41 | G32: =$C$4/12*'INGRESOS Y COSTES'!G21 -> 156953.8426 | H32: =$C$4/12*'INGRESOS Y COSTES'!H21 -> 169745.5808
B33: Tesorería Operativa | C33: =$C$5/12*'INGRESOS Y COSTES'!D28 -> 26500 | D33: =$C$5/12*'INGRESOS Y COSTES'!E28 -> 27037.5 | E33: =$C$5/12*'INGRESOS Y COSTES'!F28 -> 27848.625 | F33: =$C$5/12*'INGRESOS Y COSTES'!G28 -> 28684.08375 | G33: =$C$5/12*'INGRESOS Y COSTES'!H28 -> 29544.60626 | H33: =$C$5/12*'INGRESOS Y COSTES'!I28 -> 30430.94445
B34: Activo Corriente | C34: =SUM(C31:C33) -> 61166.66667 | D34: =SUM(D31:D33) -> 154264.5 | E34: 191367.0303 | F34: =SUM(F31:F33) -> 227892.7353 | G34: 258636.9231 | H34: 276708.2326
B35: Excedente de Tesorería | C35: =C45-C30-C34 -> 8.003553376e-11 | D35: -2.328306437e-10 | E35: 0 | F35: 48429.31788 | G35: 138939.1565 | H35: 222199.9542
B36: Total Activo | C36: =C30+C34+C35 -> 1108466.667 | D36: =D30+D34+D35 -> 1133812 | E36: 1103162.03 | F36: =F30+F34+F35 -> 1120364.553 | G36: 1173866.08 | H36: 1213445.687
B38: Capital | C38: =FINANCIACIÓN!E6 -> 443386.6667 | D38: =MAX(C38,D30+D34-D39-D40-D42-D43-D44) -> 554833.9732 | E38: =MAX(D38,E30+E34-E39-E40-E42-E43-E44) -> 572146.085 | F38: =MAX(E38,F30+F34-F39-F40-F42-F43-F44) -> 572146.085 | G38: =MAX(F38,G30+G34-G39-G40-G42-G43-G44) -> 572146.085 | H38: =MAX(G38,H30+H34-H39-H40-H42-H43-H44) -> 572146.085
B39: Reservas | D39: =C39+D23 -> -67447.23333 | E39: =D39+E23 -> -62242.56228 | F39: 7047.060222 | G39: 80197.05041 | H39: 172136.2555
B40: Subvención | C40: =FINANCIACIÓN!E7 -> 55423.33333 | D40: =C40-D15 -> 44338.66667 | E40: =D40-E15 -> 33254 | F40: =E40-F15 -> 22169.33333 | G40: =F40-G15 -> 11084.66667 | H40: =G40-H15 -> 0
B41: Patrimonio Neto | C41: =C38+C39+C40 -> 498810 | D41: =D38+D39+D40 -> 531725.4065 | E41: 543157.5228 | F41: =F38+F39+F40 -> 601362.4786 | G41: =G38+G39+G40 -> 663427.8021 | H41: =H38+H39+H40 -> 744282.3405
B42: Deuda | C42: =FINANCIACIÓN!E8 -> 609656.6667 | D42: =FINANCIACIÓN!C22 -> 563403.2602 | E42: =FINANCIACIÓN!D22 -> 514374.6492 | F42: =FINANCIACIÓN!E22 -> 462404.3217 | G42: =FINANCIACIÓN!F22 -> 407315.7745 | H42: =FINANCIACIÓN!G22 -> 348921.9144
B43: Cuentas a Pagar | D43: =$C$6/12*'INGRESOS Y COSTES'!D45 -> 38683.33333 | E43: =$C$6/12*'INGRESOS Y COSTES'!E45 -> 45629.85833 | F43: =$C$6/12*'INGRESOS Y COSTES'!F45 -> 52685.3549 | G43: =$C$6/12*'INGRESOS Y COSTES'!G45 -> 59537.3945 | H43: =$C$6/12*'INGRESOS Y COSTES'!H45 -> 63404.87195
B44: Hacienda | D44: =D20 -> 0 | E44: =E20 -> 0 | F44: =F20 -> 3912.397991 | G44: =G20 -> 43585.10852 | H44: =H20 -> 56836.55987
B45: Total Patrimonio Neto y Pasivo | C45: =SUM(C41:C44) -> 1108466.667 | D45: =SUM(D41:D44) -> 1133812 | E45: 1103162.03 | F45: =SUM(F41:F44) -> 1120364.553 | G45: 1173866.08 | H45: 1213445.687
B47: Fondo de Maniobra Operativo | C47: =C34-C43-C44 -> 61166.66667 | D47: 115581.1667 | E47: 145737.172 | F47: 171294.9824 | G47: 155514.4201 | H47: 156466.8007
B49: Deuda Neta | C49: =C42-C35 -> 609656.6667 | D49: =D42-D35 -> 563403.2602 | E49: 514374.6492 | F49: 413975.0038 | G49: 268376.618 | H49: 126721.9602

Sheet VALORACIÓN Y RENTABILIDAD
B2: Crecimiento Residual | C2: 0.03 | E2: VAN | F2: =NPV(C5,D15:H15)+C15 -> 548675.2953
B3: Reinversión Residual | C3: 0.3 | E3: TIR | F3: =IRR(C15:H15) -> 0.1790491704
B4: Rentabilidad Residual implícita | C4: =C2/C3 -> 0.1 | E4: TIR Capital | F4: =IRR(C26:H26) -> 0.2736827112
B5: CCMP | C5: =FINANCIACIÓN!D9 -> 0.0831
B7: Flujos del Proyecto
C8: ='ESTADOS FINANCIEROS'!C25 -> Inicio | D8: ='ESTADOS FINANCIEROS'!D25 -> 1 | E8: ='ESTADOS FINANCIEROS'!E25 -> 2 | F8: ='ESTADOS FINANCIEROS'!F25 -> 3 | G8: ='ESTADOS FINANCIEROS'!G25 -> 4 | H8: ='ESTADOS FINANCIEROS'!H25 -> 5
B9: BAIT | D9: ='ESTADOS FINANCIEROS'!D14 -> -41952.5 | E9: ='ESTADOS FINANCIEROS'!E14 -> 27924.2 | F9: ='ESTADOS FINANCIEROS'!F14 -> 95061.7012 | G9: ='ESTADOS FINANCIEROS'!G14 -> 159521.8218 | H9: ='ESTADOS FINANCIEROS'!H14 -> 195862.5216
B10: NOPAT | D10: =D9*(1-'ESTADOS FINANCIEROS'!D20/'ESTADOS FINANCIEROS'!D18) -> -41952.5 | E10: =E9*(1-'ESTADOS FINANCIEROS'!E20/'ESTADOS FINANCIEROS'!E18) -> 27924.2 | F10: =F9*(1-'ESTADOS FINANCIEROS'!F20/'ESTADOS FINANCIEROS'!F18) -> 90121.47808 | G10: =G9*(1-'ESTADOS FINANCIEROS'!G20/'ESTADOS FINANCIEROS'!G18) -> 111665.2753 | H10: =H9*(1-'ESTADOS FINANCIEROS'!H20/'ESTADOS FINANCIEROS'!H18) -> 137103.7651
B11: + Amortización | D11: ='ESTADOS FINANCIEROS'!D13 -> 67752.5 | E11: ='ESTADOS FINANCIEROS'!E13 -> 67752.5 | F11: ='ESTADOS FINANCIEROS'!F13 -> 67752.5 | G11: ='ESTADOS FINANCIEROS'!G13 -> 67752.5 | H11: ='ESTADOS FINANCIEROS'!H13 -> 61752.5
B12: - Ajuste Fondo de Maniobra | C12: ='ESTADOS FINANCIEROS'!C47 -> 61166.66667 | D12: ='ESTADOS FINANCIEROS'!D47-'ESTADOS FINANCIEROS'!C47 -> 54414.5 | E12: ='ESTADOS FINANCIEROS'!E47-'ESTADOS FINANCIEROS'!D47 -> 30156.00533 | F12: ='ESTADOS FINANCIEROS'!F47-'ESTADOS FINANCIEROS'!E47 -> 25557.81039 | G12: ='ESTADOS FINANCIEROS'!G47-'ESTADOS FINANCIEROS'!F47 -> -15780.56229 | H12: ='ESTADOS FINANCIEROS'!H47-'ESTADOS FINANCIEROS'!G47 -> 952.3806511
B13: - Inversiones Inmovilizado | C13: ='ESTADOS FINANCIEROS'!C30 -> 1047300
B14: + Valor en Continuidad | H14: =H10*(1+C2)*(1-C3)/(C5-C2) -> 1861616.095
B15: Flujo Neto de Caja del Proyecto | C15: =C10+C11-C12-C13+C14 -> -1108466.667 | D15: =D10+D11-D12-D13+D14 -> -28614.5 | E15: 65520.69467 | F15: 132316.1677 | G15: 195198.3376 | H15: 2059519.979
B17: Flujos del Capital
C18: =C8 -> Inicio | D18: 1 | E18: 2 | F18: 3 | G18: 4 | H18: 5
B19: BDT | D19: ='ESTADOS FINANCIEROS'!D21 -> -67447.23333 | E19: ='ESTADOS FINANCIEROS'!E21 -> 5204.671058 | F19: ='ESTADOS FINANCIEROS'!F21 -> 71371.49092 | G19: ='ESTADOS FINANCIEROS'!G21 -> 101698.5866 | H19: ='ESTADOS FINANCIEROS'!H21 -> 132618.6397
B20: + Amortización | D20: =D11 -> 67752.5 | E20: 67752.5 | F20: 67752.5 | G20: 67752.5 | H20: 61752.5
B21: - Ajuste Fondo de Maniobra | C21: =C12 -> 61166.66667 | D21: 54414.5 | E21: 30156.00533 | F21: 25557.81039 | G21: -15780.56229 | H21: 952.3806511
B22: + Ajuste Deuda Neta | C22: ='ESTADOS FINANCIEROS'!C49 -> 609656.6667 | D22: ='ESTADOS FINANCIEROS'!D49-'ESTADOS FINANCIEROS'!C49 -> -46253.40652 | E22: ='ESTADOS FINANCIEROS'!E49-'ESTADOS FINANCIEROS'!D49 -> -49028.61091 | F22: ='ESTADOS FINANCIEROS'!F49-'ESTADOS FINANCIEROS'!E49 -> -100399.6454 | G22: ='ESTADOS FINANCIEROS'!G49-'ESTADOS FINANCIEROS'!F49 -> -145598.3858 | H22: ='ESTADOS FINANCIEROS'!H49-'ESTADOS FINANCIEROS'!G49 -> -141654.6578
B23: + Ajuste Subvención | C23: ='ESTADOS FINANCIEROS'!C40 -> 55423.33333 | D23: =-'ESTADOS FINANCIEROS'!D15 -> -11084.66667 | E23: =-'ESTADOS FINANCIEROS'!E15 -> -11084.66667 | F23: =-'ESTADOS FINANCIEROS'!F15 -> -11084.66667 | G23: =-'ESTADOS FINANCIEROS'!G15 -> -11084.66667 | H23: =-'ESTADOS FINANCIEROS'!H15 -> -11084.66667
B24: - Inversiones Inmovilizado | C24: =C13 -> 1047300
B25: + Valor en Continuidad | H25: =H14-'ESTADOS FINANCIEROS'!H49 -> 1734894.134
B26: Flujo Neto de Caja del Capital | C26: =C19+C20-C21+C22+C23-C24+C25 -> -443386.6667 | D26: =D19+D20-D21+D22+D23-D24+D25 -> -111447.3065 | E26: -17312.11185 | F26: 2081.868423 | G26: 28548.59637 | H26: 1775573.569
C28: Tasa | D28: =F2 -> 548675.2953 | F28: Tasa | G28: VAN
C29: 0.06 | D29: 1798708.454 | F29: 0.07 | G29: =NPV(F29,$D$15:$H$15)+$C$15 -> 647353.6876
C30: 0.07 | D30: 1082046.582 | F30: 0.08 | G30: 571399.998
C31: 0.08 | D31: 649953.0453 | F31: 0.09 | G31: 499431.4138
C32: 0.09 | D32: 360290.2999 | F32: 0.1 | G32: 431203.5425
C33: 0.1 | D33: 152132.1214 | F33: 0.11 | G33: 366489.0694
C34: 0.11 | D34: -4992.715934 | F34: 0.12 | G34: 305076.4223
C35: 0.12 | D35: -128019.2742 | F35: 0.13 | G35: 246768.5513
C36: 0.13 | D36: -227114.0353 | F36: 0.14 | G36: 191381.8127
C37: 0.14 | D37: -308751.1162 | F37: 0.15 | G37: 138744.9484
C38: 0.15 | D38: -377250.41 | F38: 0.16 | G38: 88698.15036
C39: 0.16 | D39: -435605.844 | F39: 0.17 | G39: 41092.2035
C40: 0.17 | D40: -485958.6938 | F40: 0.18 | G40: -4212.300734
C41: 0.18 | D41: -529881.5914 | F41: 0.19 | G41: -47345.68618

Sheet ANÁLISIS DE RIESGO
G1: =C3 -> Base | H1: Medio
F2: VAN | G2: ='VALORACIÓN Y RENTABILIDAD'!F2 -> 548675.2953 | H2: =C86 -> 538498.6926
B3: Escenario | C3: Base | F3: TIR | G3: ='VALORACIÓN Y RENTABILIDAD'!F3 -> 0.1790491704 | H3: =D86 -> 0.1764121456
F4: TIR Capital | G4: ='VALORACIÓN Y RENTABILIDAD'!F4 -> 0.2736827112 | H4: =E86 -> 0.2691287753
B7: Variables consideradas en el análisis de riesgo
E8: Pesimista | F8: Base | G8: Optmista | H8: Aleatorio | I8: Pesimista | J8: Optimista
C9: Precio Producto A | D9: =IF($C$3=$E$8,E9,IF($C$3=$F$8,F9,IF($C$3=$G$8,G9,H9))) -> 50 | E9: 47 | F9: 50 | G9: 53 | H9: =RANDBETWEEN(E9*10,G9*10)/10 -> 48.3 | I9: =(E9-F9)/F9 -> -0.06 | J9: =(G9-F9)/F9 -> 0.06
C10: Cuantía Producto B | D10: =IF($C$3=$E$8,E10,IF($C$3=$F$8,F10,IF($C$3=$G$8,G10,H10))) -> 4000 | E10: 3800 | F10: 4000 | G10: 4200 | H10: =RANDBETWEEN(E10,G10) -> 4082 | I10: =(E10-F10)/F10 -> -0.05 | J10: =(G10-F10)/F10 -> 0.05
C11: Personal | D11: =IF($C$3=$E$8,E11,IF($C$3=$F$8,F11,IF($C$3=$G$8,G11,H11))) -> 160000 | E11: 180000 | F11: 160000 | G11: 140000 | H11: =RANDBETWEEN(G11,E11) -> 162980 | I11: =-(E11-F11)/F11 -> -0.125 | J11: =-(G11-F11)/F11 -> 0.125
C12: Coste Edificios | D12: =IF($C$3=$E$8,E12,IF($C$3=$F$8,F12,IF($C$3=$G$8,G12,H12))) -> 430000 | E12: 460000 | F12: 430000 | G12: 400000 | H12: =RANDBETWEEN(G12,E12) -> 411755 | I12: =-(E12-F12)/F12 -> -0.06976744186 | J12: =-(G12-F12)/F12 -> 0.06976744186
C13: Coste Materias Producto B | D13: =IF($C$3=$E$8,E13,IF($C$3=$F$8,F13,IF($C$3=$G$8,G13,H13))) -> 0.45 | E13: 0.5 | F13: 0.45 | G13: 0.4 | H13: =RANDBETWEEN(G13*1000,E13*1000)/1000 -> 0.496 | I13: =-(E13-F13)/F13 -> -0.1111111111 | J13: 0.1111111111
B15: Análisis de Escenarios
E16: =E8 -> Pesimista | F16: =F8 -> Base | G16: =G8 -> Optmista
D17: =G2 -> 548675.2953 | E17: 87028.84976 | F17: 548675.2953 | G17: 1249621.529
D18: =G3 -> 0.1790491704 | E18: 0.09913023919 | F18: 0.1790491704 | G18: 0.2805176294
D19: =G4 -> 0.2736827112 | E19: 0.1448319932 | F19: 0.2736827112 | G19: 0.4214683405
B36: Análsisi de Sensibilidad
B38: =C9 -> Precio Producto A | C38: =E9 -> 47 | D38: =F9 -> 50 | E38: =G9 -> 53
B39: =IF(C3=F8,G2,0) -> 548675.2953 | C39: 421227.5316 | D39: 548675.2953 | E39: 675560.4563
B40: =C10 -> Cuantía Producto B | C40: =E10 -> 3800 | D40: =F10 -> 4000 | E40: =G10 -> 4200
B41: =IF(C3=F8,G2,0) -> 548675.2953 | C41: 449716.4145 | D41: 548675.2953 | E41: 647328.1655
B42: =C11 -> Personal | C42: =E11 -> 180000 | D42: =F11 -> 160000 | E42: =G11 -> 140000
B43: =IF(C3=F8,G2,0) -> 548675.2953 | C43: 339196.6945 | D43: 548675.2953 | E43: 756535.3765
B44: =C12 -> Coste Edificios | C44: =E12 -> 460000 | D44: =F12 -> 430000 | E44: =G12 -> 400000
B45: =IF(C3=F8,G2,0) -> 548675.2953 | C45: 514256.4672 | D45: 548675.2953 | E45: 583118.6914
B46: =C13 -> Coste Materias Producto B | C46: =E13 -> 0.5 | D46: =F13 -> 0.45 | E46: =G13 -> 0.4
B47: =IF(C3=F8,G2,0) -> 548675.2953 | C47: 325656.5799 | D47: 548675.2953 | E47: 770580.1049
B49: Resumen | C49: =E8 -> Pesimista | D49: =F8 -> Base | E49: =G8 -> Optmista | F49: Jerarquía
B50: =B38 -> Precio Producto A | C50: =C39 -> 421227.5316 | D50: =D39 -> 548675.2953 | E50: 675560.4563 | F50: =RANK(C50,$C$50:$C$54) -> 3
B51: =B40 -> Cuantía Producto B | C51: =C41 -> 449716.4145 | D51: =D41 -> 548675.2953 | E51: 647328.1655 | F51: =RANK(C51,$C$50:$C$54) -> 2
B52: =B42 -> Personal | C52: =C43 -> 339196.6945 | D52: =D43 -> 548675.2953 | E52: 756535.3765 | F52: 4
B53: =B44 -> Coste Edificios | C53: =C45 -> 514256.4672 | D53: =D45 -> 548675.2953 | E53: 583118.6914 | F53: 1
B54: =B46 -> Coste Materias Producto B | C54: =C47 -> 325656.5799 | D54: =D47 -> 548675.2953 | E54: 770580.1049 | F54: 5
B56: Reordenación | C56: =C49 -> Pesimista | D56: =E49 -> Optmista | E56: Pesmimista * | F56: Optimista *
B57: =OFFSET(B$49,MATCH(1,$F$50:$F$54,0),0) -> Coste Edificios | C57: =OFFSET(C$49,MATCH(1,$F$50:$F$54,0),0) -> 514256.4672 | D57: =OFFSET(E$49,MATCH(1,$F$50:$F$54,0),0) -> 583118.6914 | E57: =C57-$D$50 -> -34418.82813 | F57: =D57-$D$50 -> 34443.39606
B58: =OFFSET(B$49,MATCH(2,$F$50:$F$54,0),0) -> Cuantía Producto B | C58: =OFFSET(C$49,MATCH(2,$F$50:$F$54,0),0) -> 449716.4145 | D58: =OFFSET(E$49,MATCH(2,$F$50:$F$54,0),0) -> 647328.1655 | E58: =C58-$D$50 -> -98958.88084 | F58: =D58-$D$50 -> 98652.87016
B59: =OFFSET(B$49,MATCH(3,$F$50:$F$54,0),0) -> Precio Producto A | C59: =OFFSET(C$49,MATCH(3,$F$50:$F$54,0),0) -> 421227.5316 | D59: =OFFSET(E$49,MATCH(3,$F$50:$F$54,0),0) -> 675560.4563 | E59: -127447.7637 | F59: 126885.161
B60: =OFFSET(B$49,MATCH(4,$F$50:$F$54,0),0) -> Personal | C60: =OFFSET(C$49,MATCH(4,$F$50:$F$54,0),0) -> 339196.6945 | D60: =OFFSET(E$49,MATCH(4,$F$50:$F$54,0),0) -> 756535.3765 | E60: -209478.6008 | F60: 207860.0811
B61: =OFFSET(B$49,MATCH(5,$F$50:$F$54,0),0) -> Coste Materias Producto B | C61: =OFFSET(C$49,MATCH(5,$F$50:$F$54,0),0) -> 325656.5799 | D61: =OFFSET(E$49,MATCH(5,$F$50:$F$54,0),0) -> 770580.1049 | E61: -223018.7154 | F61: 221904.8096
B81: Simulación de Monte Carlo
C83: =F2 -> VAN | D83: =F3 -> TIR | E83: =F4 -> TIR Capital
B84: Máximo | C84: =MAX(C91:C590) -> 989386.8549 | D84: =MAX(D91:D590) -> 0.2438366378 | E84: 0.3702369936
B85: Mínimo | C85: =MIN(C91:C590) -> 91135.81349 | D85: =MIN(D91:D590) -> 0.1003896659 | E85: 0.1486481031
B86: Promedio | C86: =AVERAGE(C91:C590) -> 538498.6926 | D86: =AVERAGE(D91:D590) -> 0.1764121456 | E86: 0.2691287753
B87: Desviación Típica | C87: =STDEV(C91:C590) -> 201084.2976 | D87: =STDEV(D91:D590) -> 0.03198526785 | E87: 0.04971331332
C89: =C83 -> VAN | D89: =D83 -> TIR | E89: TIR Capital
C90: =G2 -> 548675.2953 | D90: =G3 -> 0.1790491704 | E90: =G4 -> 0.2736827112
B91: Sim.1 | C91: 448046.7692 | D91: 0.1634587227 | E91: 0.2485099649
B92: Sim.2 | C92: 513823.0401 | D92: 0.1738851435 | E92: 0.2662174895
B93: Sim.3 | C93: 679985.3315 | D93: 0.1995386464 | E93: 0.3066007877
B94: Sim.4 | C94: 348315.7694 | D94: 0.1468481057 | E94: 0.2229111382
B95: Sim.5 | C95: 440901.5841 | D95: 0.1610127446 | E95: 0.2458549035
B96: Sim.6 | C96: 458809.7785 | D96: 0.1649108938 | E96: 0.2506634758 | H96: Frec. Acum. | I96: Frecuencia
B97: Sim.7 | C97: 557244.0051 | D97: 0.1810750882 | E97: 0.2753300172 | G97: =C85 -> 91135.81349 | H97: =COUNTIF($C$91:$C$590,"<="&G97)/500 -> 0.002 | I97: =H97 -> 0.002
B98: Sim.8 | C98: 268448.8809 | D98: 0.1320964563 | E98: 0.1997975415 | G98: =G97+($C$84-$C$85)/20 -> 136048.3656 | H98: =COUNTIF($C$91:$C$590,"<="&G98)/500 -> 0.018 | I98: =H98-H97 -> 0.016
B99: Sim.9 | C99: 642015.0521 | D99: 0.1947384987 | E99: 0.2987841144 | G99: 180960.9176 | H99: 0.042 | I99: =H99-H98 -> 0.024
B100: Sim.10 | C100: 783863.5368 | D100: 0.2143821475 | E100: 0.3284801235 | G100: 225873.4697 | H100: 0.062 | I100: 0.02
B101: Sim.11 | C101: 436191.6512 | D101: 0.1615441901 | E101: 0.2461549139 | G101: 270786.0218 | H101: 0.094 | I101: 0.032
B102: Sim.12 | C102: 681580.8405 | D102: 0.198122535 | E102: 0.3047560019 | G102: 315698.5738 | H102: 0.154 | I102: 0.06
B103: Sim.13 | C103: 133235.1698 | D103: 0.108873063 | E103: 0.1625254057 | G103: 360611.1259 | H103: 0.204 | I103: 0.05
B104: Sim.14 | C104: 480508.3952 | D104: 0.169402298 | E104: 0.2588239872 | G104: 405523.678 | H104: 0.28 | I104: 0.076
B105: Sim.15 | C105: 606481.0706 | D105: 0.1889072395 | E105: 0.2876493009 | G105: 450436.23 | H105: 0.33 | I105: 0.05
B106: Sim.16 | C106: 817700.2175 | D106: 0.218509141 | E106: 0.3336841154 | G106: 495348.7821 | H106: 0.426 | I106: 0.096
B107: Sim.17 | C107: 801903.7198 | D107: 0.2190122277 | E107: 0.3350715216 | G107: 540261.3342 | H107: 0.51 | I107: 0.084
B108: Sim.18 | C108: 579942.9288 | D108: 0.1826822513 | E108: 0.2792404061 | G108: 585173.8863 | H108: 0.59 | I108: 0.08
B109: Sim.19 | C109: 633613.2247 | D109: 0.1905214977 | E109: 0.2900964949 | G109: 630086.4383 | H109: 0.658 | I109: 0.068
B110: Sim.20 | C110: 607718.3896 | D110: 0.1897093847 | E110: 0.2913335651 | G110: 674998.9904 | H110: 0.734 | I110: 0.076
B111: Sim.21 | C111: 627842.0075 | D111: 0.1910239829 | E111: 0.2925971458 | G111: 719911.5425 | H111: 0.802 | I111: 0.068
B112: Sim.22 | C112: 574050.8117 | D112: 0.1845693469 | E112: 0.2817281771 | G112: 764824.0945 | H112: 0.848 | I112: 0.046
B113: Sim.23 | C113: 233663.8506 | D113: 0.1279542866 | E113: 0.1934621135 | G113: 809736.6466 | H113: 0.904 | I113: 0.056
B114: Sim.24 | C114: 522241.1508 | D114: 0.1748061265 | E114: 0.2665502503 | G114: 854649.1987 | H114: 0.944 | I114: 0.04
B115: Sim.25 | C115: 459895.1371 | D115: 0.1638756662 | E115: 0.2494614914 | G115: 899561.7507 | H115: 0.964 | I115: 0.02
B116: Sim.26 | C116: 347925.8389 | D116: 0.1450223002 | E116: 0.2202694809 | G116: 944474.3028 | H116: 0.978 | I116: 0.014
B117: Sim.27 | C117: 541384.2993 | D117: 0.1791400588 | E117: 0.2744578934 | G117: 989386.8549 | H117: 0.998 | I117: 0.02
B118: Sim.28 | C118: 722468.8227 | D118: 0.2052262923 | E118: 0.3142147344
B119: Sim.29 | C119: 712839.0088 | D119: 0.2031594033 | E119: 0.3110091274
B120: Sim.30 | C120: 808780.4449 | D120: 0.2193840771 | E120: 0.3357066531
B121: Sim.31 | C121: 560447.5962 | D121: 0.1809421067 | E121: 0.2762743533
B122: Sim.32 | C122: 248844.3245 | D122: 0.1300712438 | E122: 0.1961002964
B123: Sim.33 | C123: 459332.213 | D123: 0.1642960088 | E123: 0.2502938904
B124: Sim.34 | C124: 473723.5545 | D124: 0.1689172643 | E124: 0.2576448781
B125: Sim.35 | C125: 734395.6278 | D125: 0.2096913458 | E125: 0.3206401231
B126: Sim.36 | C126: 731150.5329 | D126: 0.2096161633 | E126: 0.3211398619
B127: Sim.37 | C127: 451826.8978 | D127: 0.1651349514 | E127: 0.2516133394
B128: Sim.38 | C128: 767160.1752 | D128: 0.2123120061 | E128: 0.3256530193
B129: Sim.39 | C129: 887684.8829 | D129: 0.2307816135 | E129: 0.3519100458
B130: Sim.40 | C130: 810423.0279 | D130: 0.219202563 | E130: 0.3335289811
B131: Sim.41 | C131: 771205.1384 | D131: 0.2116998436 | E131: 0.3244913585
B132: Sim.42 | C132: 459979.5832 | D132: 0.1643282223 | E132: 0.249970931
B133: Sim.43 | C133: 764578.0839 | D133: 0.2139183055 | E133: 0.3276061237
B134: Sim.44 | C134: 721165.0034 | D134: 0.2067247848 | E134: 0.3168283063
B135: Sim.45 | C135: 764693.7017 | D135: 0.2095238292 | E135: 0.3217175881
B136: Sim.46 | C136: 774954.4243 | D136: 0.2131606506 | E136: 0.3260753426
B137: Sim.47 | C137: 707458.4755 | D137: 0.2048468468 | E137: 0.3133073449
B138: Sim.48 | C138: 451297.0151 | D138: 0.1649571626 | E138: 0.2528435834
B139: Sim.49 | C139: 581745.0619 | D139: 0.1861056799 | E139: 0.2837558933
B140: Sim.50 | C140: 367343.5914 | D140: 0.1501343505 | E140: 0.227880242
B141: Sim.51 | C141: 704700.8598 | D141: 0.2001911968 | E141: 0.3059689062
B142: Sim.52 | C142: 511657.2817 | D142: 0.1710918262 | E142: 0.2606464603
B143: Sim.53 | C143: 485130.1661 | D143: 0.170243658 | E143: 0.2599027619
B144: Sim.54 | C144: 659739.2625 | D144: 0.1954515043 | E144: 0.3003843495
B145: Sim.55 | C145: 207102.8141 | D145: 0.1224725691 | E145: 0.1844264314
B146: Sim.56 | C146: 555743.644 | D146: 0.178807205 | E146: 0.2737720176
B147: Sim.57 | C147: 810847.8327 | D147: 0.2197570436 | E147: 0.3357972434
B148: Sim.58 | C148: 526679.6172 | D148: 0.1753011983 | E148: 0.2675356777
B149: Sim.59 | C149: 275263.4525 | D149: 0.13368092 | E149: 0.2025658017
B150: Sim.60 | C150: 297014.266 | D150: 0.1365197405 | E150: 0.2069762213
B151: Sim.61 | C151: 119026.4052 | D151: 0.1055392363 | E151: 0.1568877445
B152: Sim.62 | C152: 929963.0187 | D152: 0.2360716132 | E152: 0.3591669071
B153: Sim.63 | C153: 326714.7263 | D153: 0.1430735244 | E153: 0.2169567154
B154: Sim.64 | C154: 616489.2736 | D154: 0.1887712152 | E154: 0.289268023
B155: Sim.65 | C155: 832831.8006 | D155: 0.2210547422 | E155: 0.3380460484
B156: Sim.66 | C156: 449288.7492 | D156: 0.163316559 | E156: 0.2503142573
B157: Sim.67 | C157: 370502.689 | D157: 0.1514732673 | E157: 0.2302550683
B158: Sim.68 | C158: 651658.8633 | D158: 0.195227056 | E158: 0.2997471771
B159: Sim.69 | C159: 507605.703 | D159: 0.174136011 | E159: 0.2662658462
B160: Sim.70 | C160: 515216.1598 | D160: 0.1747406979 | E160: 0.2677805658
B161: Sim.71 | C161: 966661.4443 | D161: 0.2432162578 | E161: 0.368895441
B162: Sim.72 | C162: 463254.934 | D162: 0.1667029445 | E162: 0.2544567139
B163: Sim.73 | C163: 474507.6265 | D163: 0.1659243028 | E163: 0.2529835555
B164: Sim.74 | C164: 599928.4945 | D164: 0.1866305 | E164: 0.2871580226
B165: Sim.75 | C165: 508770.0561 | D165: 0.1747267677 | E165: 0.2668248582
B166: Sim.76 | C166: 310454.2639 | D166: 0.1404004297 | E166: 0.2127913715
B167: Sim.77 | C167: 370176.163 | D167: 0.1496263413 | E167: 0.2277296013
B168: Sim.78 | C168: 388133.095 | D168: 0.1534127221 | E168: 0.233966301
B169: Sim.79 | C169: 581603.643 | D169: 0.1860760477 | E169: 0.2841473516
B170: Sim.80 | C170: 304858.4798 | D170: 0.1384780128 | E170: 0.2105000409
B171: Sim.81 | C171: 349871.161 | D171: 0.146396571 | E171: 0.2227547968
B172: Sim.82 | C172: 276284.7851 | D172: 0.1354147037 | E172: 0.2058155755
B173: Sim.83 | C173: 306833.3459 | D173: 0.1386872902 | E173: 0.2103553783
B174: Sim.84 | C174: 618601.8715 | D174: 0.1905456779 | E174: 0.291962272
B175: Sim.85 | C175: 481565.6397 | D175: 0.1685444632 | E175: 0.2567636001
B176: Sim.86 | C176: 504943.8261 | D176: 0.1705756671 | E176: 0.2600404886
B177: Sim.87 | C177: 421469.1182 | D177: 0.1597725061 | E177: 0.2440890479
B178: Sim.88 | C178: 632679.4642 | D178: 0.1912289866 | E178: 0.2938326569
B179: Sim.89 | C179: 716455.9257 | D179: 0.2043436634 | E179: 0.3132782162
B180: Sim.90 | C180: 857505.5899 | D180: 0.2276332948 | E180: 0.346989795
B181: Sim.91 | C181: 650656.8289 | D181: 0.1963817925 | E181: 0.3010175746
B182: Sim.92 | C182: 518227.5242 | D182: 0.1758042618 | E182: 0.2682160441
B183: Sim.93 | C183: 690190.0801 | D183: 0.2001691931 | E183: 0.3064955529
B184: Sim.94 | C184: 340049.7837 | D184: 0.1444655451 | E184: 0.2192886998
B185: Sim.95 | C185: 291384.0283 | D185: 0.1366187587 | E185: 0.2073560909
B186: Sim.96 | C186: 486929.2775 | D186: 0.1709160502 | E186: 0.2605373895
B187: Sim.97 | C187: 670822.9556 | D187: 0.1967615535 | E187: 0.3006743209
B188: Sim.98 | C188: 472516.5963 | D188: 0.167599198 | E188: 0.2560838866
B189: Sim.99 | C189: 262047.9335 | D189: 0.1306454707 | E189: 0.1976809225
B190: Sim.100 | C190: 416529.5367 | D190: 0.1568911902 | E190: 0.2396516437
B191: Sim.101 | C191: 772892.1793 | D191: 0.2127499995 | E191: 0.3263798539
B192: Sim.102 | C192: 329088.608 | D192: 0.1430631408 | E192: 0.217246838
B193: Sim.103 | C193: 494150.9434 | D193: 0.1724656002 | E193: 0.2628373294
B194: Sim.104 | C194: 532587.652 | D194: 0.1771742964 | E194: 0.2712941472
B195: Sim.105 | C195: 724232.548 | D195: 0.2037824555 | E195: 0.3135982832
B196: Sim.106 | C196: 583257.3484 | D196: 0.1839589584 | E196: 0.2822353482
B197: Sim.107 | C197: 382350.2203 | D197: 0.1523090842 | E197: 0.2321449251
B198: Sim.108 | C198: 755390.3782 | D198: 0.208583378 | E198: 0.318668506
B199: Sim.109 | C199: 684667.2691 | D199: 0.2006108216 | E199: 0.3075912436
B200: Sim.110 | C200: 767394.5049 | D200: 0.2143796038 | E200: 0.3276069851
B201: Sim.111 | C201: 320672.9843 | D201: 0.140599294 | E201: 0.2130289644
B202: Sim.112 | C202: 333693.8174 | D202: 0.1435042943 | E202: 0.2183840178
B203: Sim.113 | C203: 807098.144 | D203: 0.2178406512 | E203: 0.3326106207
B204: Sim.114 | C204: 573577.4686 | D204: 0.1808411482 | E204: 0.2764667464
B205: Sim.115 | C205: 704291.8207 | D205: 0.2015755246 | E205: 0.3093102396
B206: Sim.116 | C206: 693150.9334 | D206: 0.2032239197 | E206: 0.3103896502
B207: Sim.117 | C207: 735908.715 | D207: 0.207346103 | E207: 0.3168242385
B208: Sim.118 | C208: 304106.0305 | D208: 0.1382468504 | E208: 0.2101356588
B209: Sim.119 | C209: 422273.4878 | D209: 0.1582927697 | E209: 0.2420440377
B210: Sim.120 | C210: 546794.4227 | D210: 0.1800146809 | E210: 0.275241216
B211: Sim.121 | C211: 541697.4758 | D211: 0.1771618844 | E211: 0.2704771141
B212: Sim.122 | C212: 188696.4379 | D212: 0.1186296904 | E212: 0.1778892256
B213: Sim.123 | C213: 747856.9158 | D213: 0.2066196179 | E213: 0.3169538059
B214: Sim.124 | C214: 502320.6958 | D214: 0.1720814764 | E214: 0.2637669681
B215: Sim.125 | C215: 565845.676 | D215: 0.1828910537 | E215: 0.2777206925
B216: Sim.126 | C216: 344635.7495 | D216: 0.1446090371 | E216: 0.2198726109
B217: Sim.127 | C217: 696248.9804 | D217: 0.1996612308 | E217: 0.3061438001
B218: Sim.128 | C218: 104095.2796 | D218: 0.1026772868 | E218: 0.1521758515
B219: Sim.129 | C219: 529574.2166 | D219: 0.1764740635 | E219: 0.2698811228
B220: Sim.130 | C220: 133277.5859 | D220: 0.1082149187 | E220: 0.1612424541
B221: Sim.131 | C221: 628578.8727 | D221: 0.189467884 | E221: 0.2906505074
B222: Sim.132 | C222: 310645.0865 | D222: 0.1403844016 | E222: 0.2133641709
B223: Sim.133 | C223: 599635.4569 | D223: 0.185097647 | E223: 0.2835797792
B224: Sim.134 | C224: 556239.9869 | D224: 0.1804649052 | E224: 0.2753323847
B225: Sim.135 | C225: 392704.8407 | D225: 0.1556429941 | E225: 0.2372140393
B226: Sim.136 | C226: 957635.8819 | D226: 0.2422520862 | E226: 0.3679545476
B227: Sim.137 | C227: 143358.3936 | D227: 0.1099564299 | E227: 0.1644776522
B228: Sim.138 | C228: 619821.8296 | D228: 0.190369869 | E228: 0.2913678956
B229: Sim.139 | C229: 954830.92 | D229: 0.2413592245 | E229: 0.3668057797
B230: Sim.140 | C230: 182250.685 | D230: 0.1180567043 | E230: 0.177118117
B231: Sim.141 | C231: 452579.3306 | D231: 0.164471901 | E231: 0.2511025283
B232: Sim.142 | C232: 393417.8135 | D232: 0.1529550307 | E232: 0.2335525486
B233: Sim.143 | C233: 516803.425 | D233: 0.1745349007 | E233: 0.2672680918
B234: Sim.144 | C234: 631992.587 | D234: 0.1936537898 | E234: 0.2952359643
B235: Sim.145 | C235: 505296.0629 | D235: 0.1728041797 | E235: 0.2645686616
B236: Sim.146 | C236: 235302.1905 | D236: 0.1265016577 | E236: 0.1915046868
B237: Sim.147 | C237: 639211.7386 | D237: 0.1948476111 | E237: 0.2976375273
B238: Sim.148 | C238: 869378.436 | D238: 0.2255802652 | E238: 0.3443386491
B239: Sim.149 | C239: 520154.5146 | D239: 0.1734509251 | E239: 0.2650362821
B240: Sim.150 | C240: 255966.1103 | D240: 0.1300646281 | E240: 0.1965524959
B241: Sim.151 | C241: 569763.366 | D241: 0.183657974 | E241: 0.281105915
B242: Sim.152 | C242: 201689.8486 | D242: 0.1213584514 | E242: 0.182076321
B243: Sim.153 | C243: 396895.4905 | D243: 0.1550828329 | E243: 0.2358518016
... 347 more rows
